[Event "Early-Titled-Tuesday-Blitz-April-16-2024"]
[Site "Chess.com"]
[Date "2024.04.16"]
[Round "1"]
[White "dvglko"]
[Black "AlexKhripachenko"]
[Result "0-1"]
[WhiteElo "2462"]
[BlackElo "2816"]
[TimeControl "180+1"]
[EndTime "8:06:08 PDT"]
[Termination "AlexKhripachenko won on time"]

1. e4 {[%clk 0:02:59]} 1... c5 {[%clk 0:02:59.5]} 2. Nf3 {[%clk 0:02:58.9]} 2...
e6 {[%clk 0:02:59.1]} 3. d3 {[%clk 0:02:44]} 3... Nc6 {[%clk 0:02:58.2]} 4. g3
{[%clk 0:02:43.8]} 4... Nf6 {[%clk 0:02:58.6]} 5. Bg2 {[%clk 0:02:44.3]} 5... d6
{[%clk 0:02:59.2]} 6. O-O {[%clk 0:02:44.2]} 6... Be7 {[%clk 0:02:59.9]} 7. Re1
{[%clk 0:02:43.6]} 7... O-O {[%clk 0:03:00.2]} 8. Nc3 {[%clk 0:02:38.6]} 8... e5
{[%clk 0:02:58.7]} 9. h3 {[%clk 0:02:28]} 9... h6 {[%clk 0:02:58.4]} 10. Be3
{[%clk 0:02:21.4]} 10... Be6 {[%clk 0:02:58.2]} 11. Kh2 {[%clk 0:02:17.9]} 11...
Re8 {[%clk 0:02:57.8]} 12. Qd2 {[%clk 0:02:09.8]} 12... Bf8 {[%clk 0:02:57.5]}
13. Nh4 {[%clk 0:02:08.3]} 13... d5 {[%clk 0:02:54.5]} 14. exd5 {[%clk
0:02:06.2]} 14... Nxd5 {[%clk 0:02:55.4]} 15. Nxd5 {[%clk 0:01:41.2]} 15... Bxd5
{[%clk 0:02:56.3]} 16. Qc3 {[%clk 0:01:10.2]} 16... Rc8 {[%clk 0:02:51.5]} 17.
Bxd5 {[%clk 0:01:03.8]} 17... Qxd5 {[%clk 0:02:50.9]} 18. Qb3 {[%clk 0:01:04.2]}
18... Qd7 {[%clk 0:02:50.4]} 19. Nf3 {[%clk 0:00:46.8]} 19... b6 {[%clk
0:02:48.9]} 20. a3 {[%clk 0:00:42.9]} 20... g6 {[%clk 0:02:46.7]} 21. Nh4 {[%clk
0:00:41.3]} 21... Kh7 {[%clk 0:02:45.8]} 22. Rf1 {[%clk 0:00:38.3]} 22... Bg7
{[%clk 0:02:45.6]} 23. Rae1 {[%clk 0:00:31.9]} 23... Rcd8 {[%clk 0:02:45.2]} 24.
Nf3 {[%clk 0:00:30.6]} 24... Qf5 {[%clk 0:02:42.1]} 25. Nd2 {[%clk 0:00:30.9]}
25... Qd7 {[%clk 0:02:36.8]} 26. Qa4 {[%clk 0:00:31]} 26... f5 {[%clk
0:02:36.2]} 27. Nc4 {[%clk 0:00:26.5]} 27... g5 {[%clk 0:02:30.5]} 28. f4 {[%clk
0:00:22.7]} 28... gxf4 {[%clk 0:02:26.5]} 29. gxf4 {[%clk 0:00:23.6]} 29... e4
{[%clk 0:02:27.4]} 30. Rd1 {[%clk 0:00:15.4]} 30... Qe6 {[%clk 0:02:25.4]} 31.
Rg1 {[%clk 0:00:12.3]} 31... exd3 {[%clk 0:02:25.1]} 32. cxd3 {[%clk 0:00:10.4]}
32... Nd4 {[%clk 0:02:25.5]} 33. Bxd4 {[%clk 0:00:04.3]} 33... Bxd4 {[%clk
0:02:26.4]} 34. Qxa7+ {[%clk 0:00:05.1]} 34... Rd7 {[%clk 0:02:26.2]} 35. Qxb6
{[%clk 0:00:03.9]} 35... Bxg1+ {[%clk 0:02:26.1]} 36. Rxg1 {[%clk 0:00:03.2]}
36... Qxb6 {[%clk 0:02:26.5]} 37. Nxb6 {[%clk 0:00:04.1]} 37... Rxd3 {[%clk
0:02:27.1]} 38. Na4 {[%clk 0:00:02.6]} 38... c4 {[%clk 0:02:26.5]} 39. Rc1
{[%clk 0:00:02.9]} 39... Re2+ {[%clk 0:02:26.4]} 40. Kg1 {[%clk 0:00:02.4]}
40... Re4 {[%clk 0:02:26.3]} 41. Nb6 {[%clk 0:00:02.2]} 41... Rg3+ {[%clk
0:02:26.9]} 42. Kf2 {[%clk 0:00:02.2]} 42... Rxh3 {[%clk 0:02:24.5]} 43. Rxc4
{[%clk 0:00:03.1]} 43... Rh2+ {[%clk 0:02:23.8]} 44. Kg3 {[%clk 0:00:02.9]}
44... Rxb2 {[%clk 0:02:24.4]} 45. Rc7+ {[%clk 0:00:01.8]} 45... Kg6 {[%clk
0:02:23]} 46. Nd5 {[%clk 0:00:02.7]} 46... Rb3+ {[%clk 0:02:22.6]} 47. Kh4
{[%clk 0:00:02.4]} 47... Rd3 {[%clk 0:02:18.5]} 48. Rc6+ {[%clk 0:00:02.7]}
48... Kg7 {[%clk 0:02:18.8]} 49. Rc7+ {[%clk 0:00:02.7]} 49... Kf8 {[%clk
0:02:19.4]} 50. Nf6 {[%clk 0:00:01.9]} 50... Rxf4+ {[%clk 0:02:19.9]} 51. Kh5
{[%clk 0:00:02.6]} 51... Rg3 {[%clk 0:02:13.7]} 52. Kxh6 {[%clk 0:00:02.2]}
52... Rh4+ {[%clk 0:02:13.8]} 53. Nh5 {[%clk 0:00:02.7]} 53... Rgh3 {[%clk
0:02:12.5]} 54. Rc8+ {[%clk 0:00:02.4]} 54... Ke7 {[%clk 0:02:12.9]} 55. Rc7+
{[%clk 0:00:02.8]} 55... Kd6 {[%clk 0:02:13.2]} 0-1

[Event "Early-Titled-Tuesday-Blitz-April-16-2024"]
[Site "Chess.com"]
[Date "2024.04.16"]
[Round "1"]
[White "carloseduar100"]
[Black "vladgoncharov"]
[Result "0-1"]
[WhiteElo "2223"]
[BlackElo "2590"]
[TimeControl "180+1"]
[EndTime "8:06:08 PDT"]
[Termination "vladgoncharov won by resignation"]

1. e4 {[%clk 0:02:59.2]} 1... e6 {[%clk 0:02:52.1]} 2. Nf3 {[%clk 0:02:53.3]}
2... d5 {[%clk 0:02:52.1]} 3. exd5 {[%clk 0:02:51.9]} 3... exd5 {[%clk
0:02:51.4]} 4. d4 {[%clk 0:02:52.5]} 4... Nc6 {[%clk 0:02:51.5]} 5. c3 {[%clk
0:02:46.3]} 5... Bd6 {[%clk 0:02:50.1]} 6. Bd3 {[%clk 0:02:41.9]} 6... Nge7
{[%clk 0:02:49.5]} 7. O-O {[%clk 0:02:41.7]} 7... h6 {[%clk 0:02:47.3]} 8. h3
{[%clk 0:02:41.9]} 8... O-O {[%clk 0:02:34.3]} 9. Re1 {[%clk 0:02:36.6]} 9...
Bf5 {[%clk 0:02:33.7]} 10. a4 {[%clk 0:02:14.9]} 10... Bxd3 {[%clk 0:02:30.5]}
11. Qxd3 {[%clk 0:02:14.3]} 11... a6 {[%clk 0:02:30.8]} 12. Na3 {[%clk
0:02:14.1]} 12... Ng6 {[%clk 0:02:29]} 13. Nc2 {[%clk 0:02:12.8]} 13... Na5
{[%clk 0:02:25]} 14. b4 {[%clk 0:02:05.8]} 14... Nb3 {[%clk 0:02:23.2]} 15. Rb1
{[%clk 0:02:03.8]} 15... Nxc1 {[%clk 0:02:23.2]} 16. Rbxc1 {[%clk 0:02:04.5]}
16... Qd7 {[%clk 0:02:23.2]} 17. Ne3 {[%clk 0:02:00]} 17... Nf4 {[%clk 0:02:20]}
18. Qf5 {[%clk 0:01:56.8]} 18... Qxf5 {[%clk 0:02:18.1]} 19. Nxf5 {[%clk
0:01:57.3]} 19... Nd3 {[%clk 0:02:18.7]} 20. Nxd6 {[%clk 0:01:50]} 20... cxd6
{[%clk 0:02:05.6]} 21. Rc2 {[%clk 0:01:48.2]} 21... Nxe1 {[%clk 0:02:04.9]} 22.
Nxe1 {[%clk 0:01:48.9]} 22... Rac8 {[%clk 0:02:01.9]} 23. Kf1 {[%clk 0:01:45]}
23... Rfe8 {[%clk 0:01:57.6]} 24. Nd3 {[%clk 0:01:43.9]} 24... g5 {[%clk
0:01:51.4]} 25. b5 {[%clk 0:01:41.9]} 25... axb5 {[%clk 0:01:49.6]} 26. axb5
{[%clk 0:01:42.1]} 26... Ra8 {[%clk 0:01:46.7]} 27. g4 {[%clk 0:01:40.7]} 27...
Ra5 {[%clk 0:01:42]} 28. b6 {[%clk 0:01:35.5]} 28... Rb5 {[%clk 0:01:33.1]} 29.
Nb4 {[%clk 0:01:35.4]} 29... Rc8 {[%clk 0:01:32.3]} 30. Na2 {[%clk 0:01:00.3]}
30... Rxb6 {[%clk 0:01:31]} 31. Ke2 {[%clk 0:01:00.6]} 31... Kg7 {[%clk
0:01:25.6]} 32. Kd3 {[%clk 0:01:00.8]} 32... Rb5 {[%clk 0:01:24.4]} 33. Nb4
{[%clk 0:01:00.9]} 33... Ra5 {[%clk 0:01:24.2]} 34. Re2 {[%clk 0:00:56.1]} 34...
Kf8 {[%clk 0:01:20.6]} 35. f3 {[%clk 0:00:49.2]} 35... Re8 {[%clk 0:01:20.5]}
36. Rb2 {[%clk 0:00:49.2]} 36... Re1 {[%clk 0:01:15.9]} 37. Nc2 {[%clk
0:00:48.8]} 37... Rf1 {[%clk 0:01:11.8]} 38. Ke2 {[%clk 0:00:47.4]} 38... Rh1
{[%clk 0:01:11.4]} 39. Rxb7 {[%clk 0:00:47.5]} 39... Ra2 {[%clk 0:01:10.4]} 0-1

[Event "Early-Titled-Tuesday-Blitz-April-16-2024"]
[Site "Chess.com"]
[Date "2024.04.16"]
[Round "1"]
[White "Yeritsyaan"]
[Black "Nechitaylo_Nikita"]
[Result "1-0"]
[WhiteElo "2654"]
[BlackElo "2350"]
[TimeControl "180+1"]
[EndTime "8:06:09 PDT"]
[Termination "Yeritsyaan won on time"]

1. c4 {[%clk 0:02:57.9]} 1... c5 {[%clk 0:03:00.1]} 2. Nc3 {[%clk 0:02:56.1]}
2... Nc6 {[%clk 0:02:59.8]} 3. e3 {[%clk 0:02:56.1]} 3... e5 {[%clk 0:02:59.9]}
4. g3 {[%clk 0:02:48.3]} 4... g6 {[%clk 0:02:59.2]} 5. Bg2 {[%clk 0:02:48.7]}
5... Bg7 {[%clk 0:02:59.6]} 6. Nge2 {[%clk 0:02:49.4]} 6... d6 {[%clk
0:03:00.2]} 7. O-O {[%clk 0:02:49.8]} 7... Nge7 {[%clk 0:03:00.9]} 8. a3 {[%clk
0:02:48]} 8... O-O {[%clk 0:03:00.9]} 9. Rb1 {[%clk 0:02:46.2]} 9... a5 {[%clk
0:03:01.5]} 10. b3 {[%clk 0:02:45.5]} 10... Be6 {[%clk 0:02:58.5]} 11. Bb2
{[%clk 0:02:44.9]} 11... d5 {[%clk 0:02:47.6]} 12. cxd5 {[%clk 0:02:44.1]} 12...
Nxd5 {[%clk 0:02:48.5]} 13. f4 {[%clk 0:02:34.5]} 13... exf4 {[%clk 0:02:32.7]}
14. Nxf4 {[%clk 0:02:35.4]} 14... Nxc3 {[%clk 0:02:32.6]} 15. Bxc3 {[%clk
0:02:34.8]} 15... Bxc3 {[%clk 0:02:27.1]} 16. dxc3 {[%clk 0:02:35.7]} 16... Qxd1
{[%clk 0:02:25.6]} 17. Rfxd1 {[%clk 0:02:36.6]} 17... Bf5 {[%clk 0:01:49.4]} 18.
Rb2 {[%clk 0:02:34.7]} 18... Rfd8 {[%clk 0:01:47.4]} 19. Rbd2 {[%clk 0:02:34.4]}
19... Bc2 {[%clk 0:00:56.7]} 20. Rxd8+ {[%clk 0:02:25.8]} 20... Nxd8 {[%clk
0:00:50.6]} 21. Rd5 {[%clk 0:02:19.7]} 21... Rc8 {[%clk 0:00:35.8]} 22. b4
{[%clk 0:02:09.3]} 22... cxb4 {[%clk 0:00:30.9]} 23. cxb4 {[%clk 0:02:10.2]}
23... axb4 {[%clk 0:00:14.8]} 24. axb4 {[%clk 0:02:11.1]} 24... Bb3 {[%clk
0:00:15.5]} 25. Rc5 {[%clk 0:02:01.4]} 25... Ra8 {[%clk 0:00:09.9]} 26. h4
{[%clk 0:01:59.2]} 26... Ne6 {[%clk 0:00:01.4]} 27. Nxe6 {[%clk 0:01:56.2]}
27... Bxe6 {[%clk 0:00:02.3]} 28. Bxb7 {[%clk 0:01:55.4]} 28... Rb8 {[%clk
0:00:02.7]} 29. Rc7 {[%clk 0:01:54.8]} 29... Rd8 {[%clk 0:00:01.7]} 30. b5
{[%clk 0:01:45.6]} 30... Rd1+ {[%clk 0:00:01.7]} 31. Kf2 {[%clk 0:01:45.8]}
31... Rd2+ {[%clk 0:00:01.7]} 32. Ke1 {[%clk 0:01:46]} 32... Rb2 {[%clk
0:00:01.9]} 33. Bc6 {[%clk 0:01:44.8]} 33... Bc4 {[%clk 0:00:01.4]} 34. Rb7
{[%clk 0:01:42.4]} 34... Re2+ {[%clk 0:00:01.4]} 35. Kd1 {[%clk 0:01:42.7]}
35... Rxe3 {[%clk 0:00:01.9]} 36. b6 {[%clk 0:01:43.2]} 36... Rd3+ {[%clk
0:00:01.6]} 37. Kc2 {[%clk 0:01:43]} 37... Rd6 {[%clk 0:00:01.6]} 38. Be4 {[%clk
0:01:42.2]} 38... Ba6 {[%clk 0:00:01.3]} 39. Rb8+ {[%clk 0:01:41.3]} 39... Kg7
{[%clk 0:00:01.9]} 40. b7 {[%clk 0:01:40.9]} 40... Rb6 {[%clk 0:00:02.5]} 41.
Kc3 {[%clk 0:01:37.4]} 41... f5 {[%clk 0:00:03.1]} 42. Bd5 {[%clk 0:01:37.1]}
42... Rb5 {[%clk 0:00:01.9]} 43. Kd4 {[%clk 0:01:36.3]} 1-0

[Event "Early-Titled-Tuesday-Blitz-April-16-2024"]
[Site "Chess.com"]
[Date "2024.04.16"]
[Round "1"]
[White "Makswolf200817"]
[Black "Rosh1610"]
[Result "1-0"]
[WhiteElo "2771"]
[BlackElo "2438"]
[TimeControl "180+1"]
[EndTime "8:06:11 PDT"]
[Termination "Makswolf200817 won by checkmate"]

1. d4 {[%clk 0:02:55.8]} 1... Nf6 {[%clk 0:02:57.4]} 2. c4 {[%clk 0:02:55.6]}
2... e6 {[%clk 0:02:57]} 3. g3 {[%clk 0:02:53.9]} 3... d5 {[%clk 0:02:51.4]} 4.
Bg2 {[%clk 0:02:52.6]} 4... Be7 {[%clk 0:02:40.1]} 5. Nf3 {[%clk 0:02:52]} 5...
O-O {[%clk 0:02:13.7]} 6. Nc3 {[%clk 0:02:52]} 6... b6 {[%clk 0:02:14.1]} 7.
cxd5 {[%clk 0:02:50.6]} 7... exd5 {[%clk 0:02:14]} 8. O-O {[%clk 0:02:48.9]}
8... Bb7 {[%clk 0:02:14.3]} 9. b3 {[%clk 0:02:47.9]} 9... Nbd7 {[%clk
0:02:09.2]} 10. Bb2 {[%clk 0:02:47.6]} 10... Ne4 {[%clk 0:02:08.6]} 11. Rc1
{[%clk 0:02:46.9]} 11... a6 {[%clk 0:02:06.1]} 12. e3 {[%clk 0:02:45.6]} 12...
f5 {[%clk 0:02:04.9]} 13. Ne2 {[%clk 0:02:44.4]} 13... Bd6 {[%clk 0:02:02.4]}
14. Nf4 {[%clk 0:02:44]} 14... Bxf4 {[%clk 0:01:56.2]} 15. exf4 {[%clk
0:02:43.7]} 15... c5 {[%clk 0:01:52.6]} 16. a3 {[%clk 0:02:30.4]} 16... Rc8
{[%clk 0:01:52]} 17. dxc5 {[%clk 0:02:28.1]} 17... bxc5 {[%clk 0:01:51.7]} 18.
b4 {[%clk 0:02:28.3]} 18... cxb4 {[%clk 0:01:41.4]} 19. axb4 {[%clk 0:02:27.5]}
19... Nb6 {[%clk 0:01:41.8]} 20. Qd4 {[%clk 0:02:22.3]} 20... Nf6 {[%clk
0:01:24.5]} 21. Ne5 {[%clk 0:02:17.8]} 21... Nbd7 {[%clk 0:01:15.6]} 22. Nd3
{[%clk 0:02:08.8]} 22... a5 {[%clk 0:01:05.9]} 23. b5 {[%clk 0:02:06.6]} 23...
Qe7 {[%clk 0:01:01.6]} 24. Qa7 {[%clk 0:02:01.2]} 24... Ba8 {[%clk 0:00:36]} 25.
Qxa5 {[%clk 0:01:51.1]} 25... Rxc1 {[%clk 0:00:30.9]} 26. Rxc1 {[%clk
0:01:47.2]} 26... Ne4 {[%clk 0:00:28.8]} 27. Ba3 {[%clk 0:01:46.2]} 27... Nd6
{[%clk 0:00:25.9]} 28. Qc7 {[%clk 0:01:45.1]} 28... Rf6 {[%clk 0:00:22.4]} 29.
Ne5 {[%clk 0:01:38.6]} 29... Re6 {[%clk 0:00:08.4]} 30. Qxd7 {[%clk 0:01:34.7]}
30... Rxe5 {[%clk 0:00:08.1]} 31. Qxe7 {[%clk 0:01:35]} 31... Rxe7 {[%clk
0:00:08.6]} 32. Bxd6 {[%clk 0:01:35.7]} 32... Rd7 {[%clk 0:00:08.1]} 33. Rc8+
{[%clk 0:01:35.3]} 33... Kf7 {[%clk 0:00:08.4]} 34. Rxa8 {[%clk 0:01:36]} 34...
Rxd6 {[%clk 0:00:09]} 35. Ra6 {[%clk 0:01:36]} 35... Rd8 {[%clk 0:00:07.2]} 36.
b6 {[%clk 0:01:36.6]} 36... d4 {[%clk 0:00:07.7]} 37. b7 {[%clk 0:01:36.6]}
37... d3 {[%clk 0:00:08]} 38. Ra8 {[%clk 0:01:35.7]} 38... Rd7 {[%clk
0:00:08.3]} 39. b8=Q {[%clk 0:01:35.7]} 39... d2 {[%clk 0:00:09.2]} 40. Qf8+
{[%clk 0:01:35.2]} 40... Kg6 {[%clk 0:00:09.1]} 41. Ra6+ {[%clk 0:01:35.3]}
41... Kh5 {[%clk 0:00:08.8]} 42. Qxf5+ {[%clk 0:01:35.9]} 42... g5 {[%clk
0:00:08.8]} 43. Qxg5# {[%clk 0:01:36.5]} 1-0

[Event "Early-Titled-Tuesday-Blitz-April-16-2024"]
[Site "Chess.com"]
[Date "2024.04.16"]
[Round "1"]
[White "yuriydovzik"]
[Black "Elnaz_Kaliakhmet"]
[Result "0-1"]
[WhiteElo "2140"]
[BlackElo "2572"]
[TimeControl "180+1"]
[EndTime "8:06:12 PDT"]
[Termination "Elnaz_Kaliakhmet won on time"]

1. e4 {[%clk 0:02:07.3]} 1... c5 {[%clk 0:02:59.1]} 2. Nf3 {[%clk 0:02:06.3]}
2... Nc6 {[%clk 0:02:56.9]} 3. c3 {[%clk 0:02:05.7]} 3... d5 {[%clk 0:02:55.8]}
4. exd5 {[%clk 0:02:02.7]} 4... Qxd5 {[%clk 0:02:56.7]} 5. d4 {[%clk 0:02:02.6]}
5... Nf6 {[%clk 0:02:55.5]} 6. Be3 {[%clk 0:01:51.8]} 6... e6 {[%clk 0:02:53.6]}
7. dxc5 {[%clk 0:01:44.7]} 7... Qxd1+ {[%clk 0:02:52.8]} 8. Kxd1 {[%clk
0:01:44.6]} 8... Ng4 {[%clk 0:02:53.5]} 9. b4 {[%clk 0:01:42.3]} 9... a5 {[%clk
0:02:48.7]} 10. Bb5 {[%clk 0:01:35.7]} 10... Nxe3+ {[%clk 0:02:44.3]} 11. fxe3
{[%clk 0:01:26.8]} 11... Bd7 {[%clk 0:02:44.4]} 12. Bxc6 {[%clk 0:01:16.1]}
12... Bxc6 {[%clk 0:02:40.3]} 13. Nbd2 {[%clk 0:01:13.6]} 13... b6 {[%clk
0:02:24.6]} 14. a4 {[%clk 0:00:45.1]} 14... axb4 {[%clk 0:02:11.9]} 15. cxb4
{[%clk 0:00:41]} 15... Bxa4+ {[%clk 0:02:09.6]} 16. Ke1 {[%clk 0:00:36.8]} 16...
bxc5 {[%clk 0:02:09]} 17. Nc4 {[%clk 0:00:32.6]} 17... Bc6 {[%clk 0:02:03.9]}
18. Rxa8+ {[%clk 0:00:30.3]} 18... Bxa8 {[%clk 0:02:04.8]} 19. b5 {[%clk
0:00:29.9]} 19... Be7 {[%clk 0:02:00.6]} 20. Kf2 {[%clk 0:00:26.5]} 20... O-O
{[%clk 0:02:00.2]} 21. Ra1 {[%clk 0:00:25.8]} 21... Bd5 {[%clk 0:01:55.9]} 22.
Ra7 {[%clk 0:00:22.9]} 22... Bxc4 {[%clk 0:01:48.3]} 23. Rxe7 {[%clk 0:00:22.1]}
23... Bxb5 {[%clk 0:01:48.6]} 24. Ne5 {[%clk 0:00:22.1]} 24... f6 {[%clk
0:01:45]} 25. Nf3 {[%clk 0:00:17.5]} 25... e5 {[%clk 0:01:45.2]} 26. Rc7 {[%clk
0:00:16.7]} 26... c4 {[%clk 0:01:45.1]} 27. Nd2 {[%clk 0:00:16.4]} 27... Ra8
{[%clk 0:01:37.2]} 28. Nxc4 {[%clk 0:00:16]} 28... Ra2+ {[%clk 0:01:37.6]} 29.
Kg3 {[%clk 0:00:13.6]} 29... h6 {[%clk 0:01:18.9]} 30. Nd6 {[%clk 0:00:09]}
30... Bf1 {[%clk 0:01:19]} 31. Nf5 {[%clk 0:00:04.5]} 31... Rxg2+ {[%clk
0:01:17.5]} 32. Kf3 {[%clk 0:00:03.7]} 32... Rg5 {[%clk 0:01:16]} 33. e4 {[%clk
0:00:02.4]} 33... Bh3 {[%clk 0:01:14.2]} 0-1

[Event "Early-Titled-Tuesday-Blitz-April-16-2024"]
[Site "Chess.com"]
[Date "2024.04.16"]
[Round "1"]
[White "PedroGil25"]
[Black "RobertoJBM"]
[Result "0-1"]
[WhiteElo "2503"]
[BlackElo "2913"]
[TimeControl "180+1"]
[EndTime "8:06:14 PDT"]
[Termination "RobertoJBM won by resignation"]

1. c4 {[%clk 0:03:00]} 1... c6 {[%clk 0:03:00]} 2. Nf3 {[%clk 0:03:00.1]} 2...
d5 {[%clk 0:03:00.9]} 3. g3 {[%clk 0:03:00.2]} 3... dxc4 {[%clk 0:03:00.8]} 4.
Bg2 {[%clk 0:02:58.5]} 4... b5 {[%clk 0:03:01]} 5. a4 {[%clk 0:02:57.7]} 5...
Bb7 {[%clk 0:03:01.1]} 6. O-O {[%clk 0:02:57.5]} 6... a6 {[%clk 0:03:00.5]} 7.
b3 {[%clk 0:02:56.7]} 7... cxb3 {[%clk 0:03:00.3]} 8. Qxb3 {[%clk 0:02:57.6]}
8... e6 {[%clk 0:03:00.5]} 9. Bb2 {[%clk 0:02:57.5]} 9... Nf6 {[%clk 0:03:00.1]}
10. Rc1 {[%clk 0:02:54.7]} 10... Be7 {[%clk 0:02:43.2]} 11. Ne5 {[%clk
0:02:51.6]} 11... Nd5 {[%clk 0:02:42.6]} 12. d4 {[%clk 0:02:46.7]} 12... O-O
{[%clk 0:02:40.1]} 13. Nc3 {[%clk 0:02:44.2]} 13... Nd7 {[%clk 0:01:55]} 14. Ne4
{[%clk 0:02:39.5]} 14... Nxe5 {[%clk 0:01:48.2]} 15. dxe5 {[%clk 0:02:40.4]}
15... Qb6 {[%clk 0:01:46.5]} 16. Nd6 {[%clk 0:02:38.3]} 16... Rab8 {[%clk
0:01:30.6]} 17. e3 {[%clk 0:02:02.7]} 17... c5 {[%clk 0:01:21.5]} 18. axb5
{[%clk 0:01:16.3]} 18... axb5 {[%clk 0:00:59.8]} 19. Qxb5 {[%clk 0:00:40.7]}
19... Qxb5 {[%clk 0:00:50.5]} 20. Nxb5 {[%clk 0:00:41.6]} 20... Nb4 {[%clk
0:00:32.7]} 21. Bxb7 {[%clk 0:00:24.1]} 21... Rxb7 {[%clk 0:00:33.6]} 22. Ra7
{[%clk 0:00:24.3]} 22... Rxb5 {[%clk 0:00:30.3]} 23. Rxe7 {[%clk 0:00:24.2]}
23... Nd3 {[%clk 0:00:30.3]} 24. Rd1 {[%clk 0:00:23.6]} 24... Nxb2 {[%clk
0:00:29.4]} 0-1

[Event "Early-Titled-Tuesday-Blitz-April-16-2024"]
[Site "Chess.com"]
[Date "2024.04.16"]
[Round "1"]
[White "arnash_bauyrzhan"]
[Black "albi1999"]
[Result "0-1"]
[WhiteElo "2336"]
[BlackElo "2638"]
[TimeControl "180+1"]
[EndTime "8:06:16 PDT"]
[Termination "albi1999 won by resignation"]

1. e4 {[%clk 0:02:55.4]} 1... c5 {[%clk 0:02:34]} 2. Nf3 {[%clk 0:02:54.6]} 2...
a6 {[%clk 0:02:34.2]} 3. c3 {[%clk 0:02:50.5]} 3... d5 {[%clk 0:02:33.2]} 4. e5
{[%clk 0:02:47.4]} 4... Nc6 {[%clk 0:02:32.5]} 5. d4 {[%clk 0:02:40.7]} 5... Bg4
{[%clk 0:02:32.6]} 6. Be2 {[%clk 0:02:35.3]} 6... e6 {[%clk 0:02:32.5]} 7. O-O
{[%clk 0:02:34.9]} 7... Rc8 {[%clk 0:02:32.9]} 8. h3 {[%clk 0:02:34.3]} 8... Bh5
{[%clk 0:02:31.9]} 9. Be3 {[%clk 0:02:33.4]} 9... cxd4 {[%clk 0:02:29.7]} 10.
cxd4 {[%clk 0:02:32.2]} 10... Nge7 {[%clk 0:02:29.6]} 11. Nbd2 {[%clk 0:02:32]}
11... Nf5 {[%clk 0:02:26.4]} 12. g4 {[%clk 0:02:20.4]} 12... Nxe3 {[%clk
0:02:25.6]} 13. fxe3 {[%clk 0:02:21.1]} 13... Bg6 {[%clk 0:02:25.8]} 14. Qe1
{[%clk 0:02:16.2]} 14... Be7 {[%clk 0:02:25.3]} 15. h4 {[%clk 0:02:11.6]} 15...
h5 {[%clk 0:02:24]} 16. g5 {[%clk 0:01:49.4]} 16... Qb6 {[%clk 0:02:23.2]} 17.
Nb3 {[%clk 0:01:41.1]} 17... O-O {[%clk 0:02:11.7]} 18. Qg3 {[%clk 0:01:29.6]}
18... Nb4 {[%clk 0:02:07.9]} 19. Ne1 {[%clk 0:01:24.9]} 19... Nxa2 {[%clk
0:01:38.2]} 20. Bd1 {[%clk 0:00:52.1]} 20... Nb4 {[%clk 0:01:33.3]} 21. Ng2
{[%clk 0:00:50]} 21... Nc2 {[%clk 0:01:30.2]} 22. Bxc2 {[%clk 0:00:40.2]} 22...
Rxc2 {[%clk 0:01:27.2]} 23. Na5 {[%clk 0:00:07.6]} 23... Qxb2 {[%clk 0:01:22.7]}
24. Nf4 {[%clk 0:00:07.8]} 24... Be4 {[%clk 0:01:20.9]} 25. Rab1 {[%clk
0:00:04.1]} 25... Qa2 {[%clk 0:01:10.3]} 26. Nxb7 {[%clk 0:00:03.6]} 26... Rb8
{[%clk 0:01:00.3]} 27. Nd6 {[%clk 0:00:01.8]} 27... Rxb1 {[%clk 0:00:59]} 0-1

[Event "Early-Titled-Tuesday-Blitz-April-16-2024"]
[Site "Chess.com"]
[Date "2024.04.16"]
[Round "1"]
[White "Road2GM3000"]
[Black "the_chess_child"]
[Result "0-1"]
[WhiteElo "2458"]
[BlackElo "2816"]
[TimeControl "180+1"]
[EndTime "8:06:18 PDT"]
[Termination "the_chess_child won by checkmate"]

1. d4 {[%clk 0:02:58.8]} 1... Nf6 {[%clk 0:02:59.2]} 2. c4 {[%clk 0:02:58.9]}
2... g6 {[%clk 0:02:59.6]} 3. Nc3 {[%clk 0:02:59.4]} 3... Bg7 {[%clk 0:03:00.1]}
4. e4 {[%clk 0:03:00.1]} 4... d6 {[%clk 0:03:00.6]} 5. f4 {[%clk 0:03:00.7]}
5... O-O {[%clk 0:02:59.3]} 6. Nf3 {[%clk 0:03:01.2]} 6... c5 {[%clk 0:02:58.8]}
7. d5 {[%clk 0:03:01.6]} 7... e6 {[%clk 0:02:56.6]} 8. Be2 {[%clk 0:03:02.2]}
8... exd5 {[%clk 0:02:56.3]} 9. exd5 {[%clk 0:03:02.8]} 9... Bf5 {[%clk
0:02:50.4]} 10. O-O {[%clk 0:03:03.1]} 10... Ne4 {[%clk 0:02:49.7]} 11. Nxe4
{[%clk 0:03:03.3]} 11... Bxe4 {[%clk 0:02:50.6]} 12. Bd3 {[%clk 0:03:04]} 12...
Bxf3 {[%clk 0:02:46.7]} 13. Qxf3 {[%clk 0:03:00.9]} 13... Nd7 {[%clk 0:02:46]}
14. f5 {[%clk 0:02:51.7]} 14... Ne5 {[%clk 0:02:40.9]} 15. Qg3 {[%clk
0:02:47.2]} 15... Re8 {[%clk 0:02:28.3]} 16. Bg5 {[%clk 0:02:28.7]} 16... Qb6
{[%clk 0:02:10]} 17. f6 {[%clk 0:02:13.1]} 17... Qxb2 {[%clk 0:01:58.9]} 18.
Bxg6 {[%clk 0:01:47.7]} 18... fxg6 {[%clk 0:01:32.5]} 19. fxg7 {[%clk
0:01:46.8]} 19... Qd4+ {[%clk 0:01:28.1]} 20. Kh1 {[%clk 0:01:42.5]} 20... Kxg7
{[%clk 0:01:18.1]} 21. Bf6+ {[%clk 0:01:35.1]} 21... Kg8 {[%clk 0:01:17.3]} 22.
Qg5 {[%clk 0:01:32.5]} 22... Nf7 {[%clk 0:01:07]} 23. Qc1 {[%clk 0:01:14.5]}
23... Qd3 {[%clk 0:01:03.9]} 24. Qb2 {[%clk 0:01:09.8]} 24... b6 {[%clk
0:01:00]} 25. Rf3 {[%clk 0:00:49.2]} 25... Qxc4 {[%clk 0:00:54.5]} 26. Raf1
{[%clk 0:00:48.8]} 26... Re2 {[%clk 0:00:53.8]} 27. Qa1 {[%clk 0:00:38.7]} 27...
Rae8 {[%clk 0:00:51.3]} 28. Bc3 {[%clk 0:00:10.3]} 28... Qxd5 {[%clk 0:00:48.3]}
29. Rxf7 {[%clk 0:00:08.8]} 29... Qxg2# {[%clk 0:00:48.3]} 0-1